[Event "Titled Tuesday Blitz August 22 Late 2023"]
[White "Itkis, Boris"]
[Black "Martinez Ramirez, Lennis"]
[WhiteFideId "1209167"]
[BlackFideId "3509079"]
[WhiteElo "2485"]
[BlackElo "2729"]
[Result "0-1"]
[Round "3"]
[TimeControl "180+1"]
[Date "2023.08.22"]
[WhiteClock "0:00:57"]
[BlackClock "0:00:58"]
[Board "79"]

1. d4 {[%clk 0:03:00]}  Nf6 {[%clk 0:02:58]} 2. Nc3 {[%clk 0:03:01]}  d5 {[%clk 0:02:58]} 3. Bf4 {[%clk 0:03:02]}  c6 {[%clk 0:02:58]} 4. e3 {[%clk 0:03:01]}  Bf5 {[%clk 0:02:57]} 5. f3 {[%clk 0:03:01]}  e6 {[%clk 0:02:57]} 6. g4 {[%clk 0:03:00]}  Bg6 {[%clk 0:02:57]} 7. h4 {[%clk 0:03:01]}  h5 {[%clk 0:02:57]} 8. g5 {[%clk 0:03:01]}  Nfd7 {[%clk 0:02:57]} 9. Nge2 {[%clk 0:03:00]}  c5 {[%clk 0:02:56]} 10. Qd2 {[%clk 0:02:58]}  a6 {[%clk 0:02:55]} 11. O-O-O {[%clk 0:02:58]}  Nc6 {[%clk 0:02:46]} 12. e4 {[%clk 0:02:48]}  Nb6 {[%clk 0:02:26]} 13. dxc5 {[%clk 0:02:42]}  Bxc5 {[%clk 0:02:24]} 14. exd5 {[%clk 0:02:42]}  Nb4 {[%clk 0:02:24]} 15. dxe6 {[%clk 0:02:34]}  Qxd2+ {[%clk 0:02:03]} 16. Rxd2 {[%clk 0:02:34]}  fxe6 {[%clk 0:02:03]} 17. a3 {[%clk 0:02:31]}  N4d5 {[%clk 0:02:00]} 18. Nxd5 {[%clk 0:02:09]}  Nxd5 {[%clk 0:02:01]} 19. b4 {[%clk 0:02:04]}  Ba7 {[%clk 0:01:58]} 20. Be5 {[%clk 0:01:54]}  Be3 {[%clk 0:01:55]} 21. c4 {[%clk 0:01:54]}  Nb6 {[%clk 0:01:50]} 22. Nf4 {[%clk 0:01:53]}  Rd8 {[%clk 0:01:32]} 23. Rh2 {[%clk 0:01:53]}  Kf7 {[%clk 0:01:22]} 24. Bc7 {[%clk 0:01:39]}  Rxd2 {[%clk 0:01:22]} 25. Rxd2 {[%clk 0:01:39]}  Rc8 {[%clk 0:01:12]} 26. Bxb6 {[%clk 0:01:36]}  Bxf4 {[%clk 0:01:08]} 27. Kd1 {[%clk 0:01:34]}  Bxd2 {[%clk 0:01:07]} 28. Kxd2 {[%clk 0:01:35]}  e5 {[%clk 0:01:01]} 29. Ke3 {[%clk 0:01:34]}  Bf5 {[%clk 0:01:01]} 30. Bd3 {[%clk 0:01:33]}  Bxd3 {[%clk 0:00:59]} 31. Kxd3 {[%clk 0:01:33]}  g6 {[%clk 0:00:58]} 32. Ke4 {[%clk 0:01:33]}  Ke6 {[%clk 0:00:58]} 33. c5 {[%clk 0:00:57]}  Rf8 {[%clk 0:00:58]} 0-1


[Site "https://www.chess.com"]

[Event "Titled Tuesday Blitz August 22 Late 2023"]
[White "Dimitrov, Atanas"]
[Black "Chernikov, Vladimir"]
[WhiteFideId "2901315"]
[BlackFideId "14112914"]
[WhiteElo "2725"]
[BlackElo "2479"]
[Result "0-1"]
[Round "3"]
[TimeControl "180+1"]
[Date "2023.08.22"]
[WhiteClock "0:00:07"]
[BlackClock "0:01:29"]
[Board "82"]

1. Nf3 {[%clk 0:03:00]}  c5 {[%clk 0:02:58]} 2. c4 {[%clk 0:03:00]}  Nc6 {[%clk 0:02:57]} 3. Nc3 {[%clk 0:03:01]}  e5 {[%clk 0:02:57]} 4. b3 {[%clk 0:02:59]}  g6 {[%clk 0:02:56]} 5. Bb2 {[%clk 0:02:59]}  Bg7 {[%clk 0:02:57]} 6. d3 {[%clk 0:02:49]}  Nge7 {[%clk 0:02:56]} 7. g3 {[%clk 0:02:50]}  d6 {[%clk 0:02:56]} 8. Bg2 {[%clk 0:02:50]}  Be6 {[%clk 0:02:56]} 9. O-O {[%clk 0:02:50]}  O-O {[%clk 0:02:55]} 10. e3 {[%clk 0:02:50]}  d5 {[%clk 0:02:54]} 11. cxd5 {[%clk 0:02:49]}  Nxd5 {[%clk 0:02:55]} 12. Nxd5 {[%clk 0:02:50]}  Bxd5 {[%clk 0:02:55]} 13. Qc2 {[%clk 0:02:50]}  b6 {[%clk 0:02:50]} 14. Rfd1 {[%clk 0:02:46]}  Rc8 {[%clk 0:02:48]} 15. Rac1 {[%clk 0:02:45]}  Qd7 {[%clk 0:02:45]} 16. Qe2 {[%clk 0:02:41]}  Rfd8 {[%clk 0:02:37]} 17. h4 {[%clk 0:02:39]}  h6 {[%clk 0:02:35]} 18. Kh2 {[%clk 0:02:37]}  Be6 {[%clk 0:02:34]} 19. Ne1 {[%clk 0:02:28]}  Bg4 {[%clk 0:02:30]} 20. Bf3 {[%clk 0:02:27]}  Bxf3 {[%clk 0:02:26]} 21. Qxf3 {[%clk 0:02:28]}  e4 {[%clk 0:02:20]} 22. dxe4 {[%clk 0:02:23]}  Qe6 {[%clk 0:02:11]} 23. Bxg7 {[%clk 0:02:20]}  Kxg7 {[%clk 0:02:11]} 24. Nd3 {[%clk 0:02:20]}  Rxd3 {[%clk 0:01:52]} 25. Rxd3 {[%clk 0:02:18]}  Ne5 {[%clk 0:01:52]} 26. Qe2 {[%clk 0:02:17]}  Nxd3 {[%clk 0:01:52]} 27. Qxd3 {[%clk 0:02:18]}  Re8 {[%clk 0:01:52]} 28. f3 {[%clk 0:02:12]}  f5 {[%clk 0:01:52]} 29. exf5 {[%clk 0:02:04]}  Qxe3 {[%clk 0:01:51]} 30. Qxe3 {[%clk 0:00:32]}  Rxe3 {[%clk 0:01:52]} 31. fxg6 {[%clk 0:00:33]}  Kxg6 {[%clk 0:01:53]} 32. f4 {[%clk 0:00:27]}  Re2+ {[%clk 0:01:52]} 33. Kh3 {[%clk 0:00:27]}  Rxa2 {[%clk 0:01:53]} 34. Rd1 {[%clk 0:00:27]}  Ra3 {[%clk 0:01:47]} 35. Rd3 {[%clk 0:00:26]}  b5 {[%clk 0:01:44]} 36. Rd6+ {[%clk 0:00:25]}  Kg7 {[%clk 0:01:43]} 37. Kg4 {[%clk 0:00:25]}  Rxb3 {[%clk 0:01:42]} 38. Rd7+ {[%clk 0:00:26]}  Kf6 {[%clk 0:01:42]} 39. Rxa7 {[%clk 0:00:26]}  h5+ {[%clk 0:01:41]} 40. Kh3 {[%clk 0:00:22]}  c4 {[%clk 0:01:41]} 41. Rc7 {[%clk 0:00:20]}  c3 {[%clk 0:01:40]} 42. Kg2 {[%clk 0:00:18]}  Rb2+ {[%clk 0:01:37]} 43. Kf3 {[%clk 0:00:18]}  b4 {[%clk 0:01:38]} 44. Ke4 {[%clk 0:00:14]}  c2 {[%clk 0:01:38]} 45. Rc6+ {[%clk 0:00:14]}  Ke7 {[%clk 0:01:38]} 46. f5 {[%clk 0:00:14]}  b3 {[%clk 0:01:37]} 47. f6+ {[%clk 0:00:15]}  Kf7 {[%clk 0:01:37]} 48. Kf5 {[%clk 0:00:16]}  Rb1 {[%clk 0:01:35]} 49. Rc7+ {[%clk 0:00:16]}  Ke8 {[%clk 0:01:34]} 50. Rc8+ {[%clk 0:00:12]}  Kd7 {[%clk 0:01:34]} 51. f7 {[%clk 0:00:11]}  Rf1+ {[%clk 0:01:34]} 52. Kg6 {[%clk 0:00:11]}  Kxc8 {[%clk 0:01:32]} 53. g4 {[%clk 0:00:07]}  Rxf7 {[%clk 0:01:31]} 54. g5 {[%clk 0:00:08]}  Rc7 {[%clk 0:01:30]} 55. Kxh5 {[%clk 0:00:08]}  c1=Q {[%clk 0:01:30]} 56. g6 {[%clk 0:00:09]}  Qd1+ {[%clk 0:01:30]} 57. Kh6 {[%clk 0:00:09]}  Qg4 {[%clk 0:01:29]} 58. g7 {[%clk 0:00:06]}  Qxg7+ {[%clk 0:01:29]} 59. Kh5 {[%clk 0:00:07]}  Rc5# {[%clk 0:01:29]} 0-1


[Site "https://www.chess.com"]

[Event "Titled Tuesday Blitz August 22 Late 2023"]
[White "Jaracz, Pawel"]
[Black "Gogolev, Artem"]
[WhiteFideId "1102222"]
[BlackFideId "4116615"]
[WhiteElo "2713"]
[BlackElo "2476"]
[Result "1-0"]
[Round "3"]
[TimeControl "180+1"]
[Date "2023.08.22"]
[WhiteClock "0:00:04"]
[BlackClock "0:00:00"]
[Board "83"]

1. e4 {[%clk 0:02:58]}  c6 {[%clk 0:02:59]} 2. d4 {[%clk 0:02:57]}  d5 {[%clk 0:03:00]} 3. Nc3 {[%clk 0:02:54]}  dxe4 {[%clk 0:02:59]} 4. Nxe4 {[%clk 0:02:55]}  Bf5 {[%clk 0:03:00]} 5. Ng3 {[%clk 0:02:55]}  Bg6 {[%clk 0:02:59]} 6. Nh3 {[%clk 0:02:55]}  e6 {[%clk 0:02:57]} 7. Nf4 {[%clk 0:02:55]}  Bd6 {[%clk 0:02:56]} 8. c3 {[%clk 0:02:54]}  Nf6 {[%clk 0:02:54]} 9. h4 {[%clk 0:02:51]}  Bxf4 {[%clk 0:02:48]} 10. Bxf4 {[%clk 0:02:50]}  h6 {[%clk 0:02:48]} 11. Qb3 {[%clk 0:02:44]}  Qb6 {[%clk 0:02:44]} 12. Be2 {[%clk 0:02:39]}  Nbd7 {[%clk 0:02:43]} 13. Bd6 {[%clk 0:02:33]}  Nd5 {[%clk 0:02:00]} 14. c4 {[%clk 0:02:17]}  Qxb3 {[%clk 0:01:51]} 15. axb3 {[%clk 0:02:16]}  N5f6 {[%clk 0:01:48]} 16. O-O {[%clk 0:02:08]}  Ne4 {[%clk 0:01:35]} 17. Nxe4 {[%clk 0:02:07]}  Bxe4 {[%clk 0:01:36]} 18. f3 {[%clk 0:02:03]}  Bc2 {[%clk 0:01:34]} 19. Rfc1 {[%clk 0:02:02]}  Bg6 {[%clk 0:01:30]} 20. b4 {[%clk 0:02:02]}  Nf6 {[%clk 0:01:23]} 21. b5 {[%clk 0:01:57]}  Kd7 {[%clk 0:01:23]} 22. Be5 {[%clk 0:01:56]}  cxb5 {[%clk 0:01:22]} 23. cxb5 {[%clk 0:01:55]}  Rhc8 {[%clk 0:01:03]} 24. Rxc8 {[%clk 0:01:50]}  Kxc8 {[%clk 0:01:03]} 25. Rc1+ {[%clk 0:01:49]}  Kd8 {[%clk 0:01:04]} 26. Rc7 {[%clk 0:01:47]}  Nd5 {[%clk 0:00:59]} 27. Rc1 {[%clk 0:01:28]}  f6 {[%clk 0:00:56]} 28. Bg3 {[%clk 0:01:27]}  Rc8 {[%clk 0:00:51]} 29. Rxc8+ {[%clk 0:01:04]}  Kxc8 {[%clk 0:00:50]} 30. Bd6 {[%clk 0:01:05]}  Bf7 {[%clk 0:00:32]} 31. Bf8 {[%clk 0:01:04]}  g5 {[%clk 0:00:33]} 32. Bxh6 {[%clk 0:00:59]}  gxh4 {[%clk 0:00:33]} 33. Kf2 {[%clk 0:00:58]}  Kc7 {[%clk 0:00:32]} 34. Bf8 {[%clk 0:00:55]}  Bg6 {[%clk 0:00:23]} 35. Bc5 {[%clk 0:00:52]}  b6 {[%clk 0:00:23]} 36. Bf8 {[%clk 0:00:52]}  Kd7 {[%clk 0:00:20]} 37. Bc4 {[%clk 0:00:51]}  Nc7 {[%clk 0:00:20]} 38. Bh6 {[%clk 0:00:47]}  Bc2 {[%clk 0:00:15]} 39. b3 {[%clk 0:00:44]}  Bg6 {[%clk 0:00:06]} 40. Bd2 {[%clk 0:00:44]}  Ke7 {[%clk 0:00:07]} 41. Bb4+ {[%clk 0:00:42]}  Kd8 {[%clk 0:00:07]} 42. Be1 {[%clk 0:00:30]}  Be8 {[%clk 0:00:07]} 43. Ke3 {[%clk 0:00:27]}  Bxb5 {[%clk 0:00:08]} 44. Bxh4 {[%clk 0:00:26]}  Ke7 {[%clk 0:00:08]} 45. Bg3 {[%clk 0:00:23]}  Bxc4 {[%clk 0:00:08]} 46. bxc4 {[%clk 0:00:24]}  Ne8 {[%clk 0:00:09]} 47. Kd3 {[%clk 0:00:20]}  Kd7 {[%clk 0:00:09]} 48. Bh4 {[%clk 0:00:19]}  f5 {[%clk 0:00:09]} 49. g4 {[%clk 0:00:19]}  fxg4 {[%clk 0:00:09]} 50. fxg4 {[%clk 0:00:20]}  a5 {[%clk 0:00:08]} 51. g5 {[%clk 0:00:19]}  Nd6 {[%clk 0:00:08]} 52. g6 {[%clk 0:00:18]}  Ke8 {[%clk 0:00:07]} 53. Bf6 {[%clk 0:00:18]}  a4 {[%clk 0:00:06]} 54. d5 {[%clk 0:00:15]}  exd5 {[%clk 0:00:06]} 55. cxd5 {[%clk 0:00:15]}  b5 {[%clk 0:00:07]} 56. Be5 {[%clk 0:00:15]}  Nc4 {[%clk 0:00:06]} 57. Bc3 {[%clk 0:00:14]}  a3 {[%clk 0:00:06]} 58. Kd4 {[%clk 0:00:09]}  a2 {[%clk 0:00:07]} 59. Kc5 {[%clk 0:00:09]}  b4 {[%clk 0:00:07]} 60. Kxb4 {[%clk 0:00:09]}  Ne3 {[%clk 0:00:07]} 61. Kc5 {[%clk 0:00:08]}  Nf5 {[%clk 0:00:01]} 62. Kc6 {[%clk 0:00:07]}  Nh4 {[%clk 0:00:02]} 63. d6 {[%clk 0:00:06]}  Nxg6 {[%clk 0:00:01]} 64. d7+ {[%clk 0:00:07]}  Ke7 {[%clk 0:00:02]} 65. Bf6+ {[%clk 0:00:05]}  Ke6 {[%clk 0:00:02]} 66. d8=Q {[%clk 0:00:04]}  Ne5+ {[%clk 0:00:00]} 67. Bxe5 {[%clk 0:00:04]} 1-0


[Site "https://www.chess.com"]

[Event "Titled Tuesday Blitz August 22 Late 2023"]
[White "Lamaze, Simon"]
[Black "Shubenkova, Veronika"]
[WhiteFideId "36069264"]
[BlackFideId "44124040"]
[WhiteElo "2704"]
[BlackElo "2473"]
[Result "1-0"]
[Round "3"]
[TimeControl "180+1"]
[Date "2023.08.22"]
[WhiteClock "0:00:15"]
[BlackClock "0:00:46"]
[Board "85"]

1. c4 {[%clk 0:03:00]}  e5 {[%clk 0:02:57]} 2. g3 {[%clk 0:03:00]}  Nc6 {[%clk 0:02:56]} 3. Bg2 {[%clk 0:03:01]}  g6 {[%clk 0:02:56]} 4. Nc3 {[%clk 0:03:01]}  Bg7 {[%clk 0:02:56]} 5. Rb1 {[%clk 0:02:52]}  f5 {[%clk 0:02:54]} 6. b4 {[%clk 0:02:50]}  d6 {[%clk 0:02:54]} 7. b5 {[%clk 0:02:48]}  Nce7 {[%clk 0:02:54]} 8. e3 {[%clk 0:02:48]}  Nf6 {[%clk 0:02:54]} 9. Nge2 {[%clk 0:02:47]}  O-O {[%clk 0:02:54]} 10. d3 {[%clk 0:02:46]}  Rb8 {[%clk 0:02:54]} 11. a4 {[%clk 0:02:46]}  Be6 {[%clk 0:02:54]} 12. Ba3 {[%clk 0:02:46]}  g5 {[%clk 0:02:53]} 13. f4 {[%clk 0:02:46]}  gxf4 {[%clk 0:02:50]} 14. exf4 {[%clk 0:02:46]}  Ng4 {[%clk 0:02:49]} 15. Qd2 {[%clk 0:02:46]}  exf4 {[%clk 0:02:47]} 16. Nxf4 {[%clk 0:02:46]}  Bf7 {[%clk 0:02:45]} 17. Nce2 {[%clk 0:02:35]}  Ng6 {[%clk 0:02:42]} 18. Nxg6 {[%clk 0:02:20]}  hxg6 {[%clk 0:02:42]} 19. O-O {[%clk 0:02:16]}  Re8 {[%clk 0:02:31]} 20. Bb2 {[%clk 0:02:15]}  Ne3 {[%clk 0:02:18]} 21. Rf2 {[%clk 0:02:14]}  Nxg2 {[%clk 0:02:18]} 22. Rxg2 {[%clk 0:02:15]}  Bxb2 {[%clk 0:02:17]} 23. Rxb2 {[%clk 0:02:14]}  c6 {[%clk 0:02:17]} 24. h4 {[%clk 0:02:11]}  cxb5 {[%clk 0:02:16]} 25. axb5 {[%clk 0:02:10]}  Qb6+ {[%clk 0:02:15]} 26. Kh2 {[%clk 0:02:09]}  Re3 {[%clk 0:02:06]} 27. c5 {[%clk 0:01:56]}  Qxc5 {[%clk 0:02:05]} 28. Nf4 {[%clk 0:01:51]}  Rbe8 {[%clk 0:02:03]} 29. Rc2 {[%clk 0:01:49]}  Qxb5 {[%clk 0:01:58]} 30. Rc7 {[%clk 0:01:48]}  Qb1 {[%clk 0:01:56]} 31. Rg1 {[%clk 0:01:38]}  Re1 {[%clk 0:01:51]} 32. Rxe1 {[%clk 0:01:23]}  Rxe1 {[%clk 0:01:50]} 33. Qg2 {[%clk 0:01:22]}  Rc1 {[%clk 0:01:40]} 34. Rxb7 {[%clk 0:01:16]}  Qa1 {[%clk 0:01:26]} 35. h5 {[%clk 0:01:07]}  g5 {[%clk 0:01:24]} 36. Ng6 {[%clk 0:01:05]}  Bxg6 {[%clk 0:01:24]} 37. Qd5+ {[%clk 0:00:53]}  Kh8 {[%clk 0:01:09]} 38. Rb8+ {[%clk 0:00:52]}  Kg7 {[%clk 0:01:07]} 39. Qg8+ {[%clk 0:00:36]}  Kf6 {[%clk 0:01:07]} 40. Qxg6+ {[%clk 0:00:36]}  Ke5 {[%clk 0:01:07]} 41. Re8+ {[%clk 0:00:34]}  Kd4 {[%clk 0:01:06]} 42. Qxd6+ {[%clk 0:00:32]}  Kc3 {[%clk 0:01:06]} 43. Qe5+ {[%clk 0:00:31]}  Kxd3 {[%clk 0:01:04]} 44. Rd8+ {[%clk 0:00:27]}  Kc4 {[%clk 0:01:03]} 45. Qc7+ {[%clk 0:00:26]}  Kb3 {[%clk 0:00:56]} 46. Rb8+ {[%clk 0:00:26]}  Ka2 {[%clk 0:00:56]} 47. Qf7+ {[%clk 0:00:22]}  Ka3 {[%clk 0:00:54]} 48. Qe7+ {[%clk 0:00:21]}  Ka2 {[%clk 0:00:51]} 49. Qe6+ {[%clk 0:00:20]}  Ka3 {[%clk 0:00:50]} 50. Qd6+ {[%clk 0:00:19]}  Ka2 {[%clk 0:00:50]} 51. Qd5+ {[%clk 0:00:19]}  Ka3 {[%clk 0:00:50]} 52. Qd3+ {[%clk 0:00:15]}  Qc3 {[%clk 0:00:47]} 53. Qa6+ {[%clk 0:00:15]}  Qa5 {[%clk 0:00:46]} 54. Qxa5# {[%clk 0:00:15]} 1-0


[Site "https://www.chess.com"]

[Event "Titled Tuesday Blitz August 22 Late 2023"]
[White "Toropov, Pavel"]
[Black "Schnaider, Ilan"]
[WhiteFideId "24129178"]
[BlackFideId "169013"]
[WhiteElo "2472"]
[BlackElo "2697"]
[Result "0-1"]
[Round "3"]
[TimeControl "180+1"]
[Date "2023.08.22"]
[WhiteClock "0:00:00"]
[BlackClock "0:01:00"]
[Board "87"]

1. e4 {[%clk 0:03:00]}  e6 {[%clk 0:02:57]} 2. d4 {[%clk 0:03:00]}  d5 {[%clk 0:02:57]} 3. exd5 {[%clk 0:03:01]}  exd5 {[%clk 0:02:57]} 4. Bd3 {[%clk 0:03:02]}  Nf6 {[%clk 0:02:58]} 5. Nf3 {[%clk 0:03:01]}  Bd6 {[%clk 0:02:58]} 6. O-O {[%clk 0:03:01]}  O-O {[%clk 0:02:59]} 7. h3 {[%clk 0:03:01]}  h6 {[%clk 0:02:59]} 8. Nc3 {[%clk 0:03:00]}  c6 {[%clk 0:02:59]} 9. Ne2 {[%clk 0:02:59]}  Qc7 {[%clk 0:02:59]} 10. Be3 {[%clk 0:02:55]}  Re8 {[%clk 0:02:59]} 11. Qd2 {[%clk 0:02:55]}  Ne4 {[%clk 0:02:56]} 12. Qc1 {[%clk 0:02:51]}  Bf5 {[%clk 0:02:55]} 13. Bf4 {[%clk 0:02:50]}  Nd7 {[%clk 0:02:54]} 14. Bxd6 {[%clk 0:02:49]}  Nxd6 {[%clk 0:02:54]} 15. Bxf5 {[%clk 0:02:45]}  Nxf5 {[%clk 0:02:54]} 16. Re1 {[%clk 0:02:38]}  Nf6 {[%clk 0:02:49]} 17. Qf4 {[%clk 0:02:22]}  Qxf4 {[%clk 0:02:47]} 18. Nxf4 {[%clk 0:02:22]}  Re4 {[%clk 0:02:47]} 19. Ne2 {[%clk 0:01:52]}  Rae8 {[%clk 0:02:45]} 20. Kf1 {[%clk 0:01:52]}  h5 {[%clk 0:02:34]} 21. c3 {[%clk 0:01:48]}  h4 {[%clk 0:02:30]} 22. Ng5 {[%clk 0:01:43]}  R4e7 {[%clk 0:02:27]} 23. Nf4 {[%clk 0:01:38]}  Ne4 {[%clk 0:02:19]} 24. Nf3 {[%clk 0:01:09]}  g5 {[%clk 0:02:10]} 25. Nd3 {[%clk 0:01:07]}  f6 {[%clk 0:02:10]} 26. Kg1 {[%clk 0:01:04]}  a5 {[%clk 0:02:02]} 27. a4 {[%clk 0:01:02]}  b6 {[%clk 0:02:00]} 28. Re2 {[%clk 0:01:01]}  Ned6 {[%clk 0:01:50]} 29. Rxe7 {[%clk 0:00:57]}  Rxe7 {[%clk 0:01:49]} 30. Kf1 {[%clk 0:00:58]}  Ne4 {[%clk 0:01:45]} 31. Rd1 {[%clk 0:00:48]}  Nfd6 {[%clk 0:01:45]} 32. Nd2 {[%clk 0:00:46]}  Kf7 {[%clk 0:01:40]} 33. Nb1 {[%clk 0:00:09]}  Nc4 {[%clk 0:01:34]} 34. b3 {[%clk 0:00:07]}  Ncd6 {[%clk 0:01:35]} 35. Re1 {[%clk 0:00:06]}  Rb7 {[%clk 0:01:29]} 36. f3 {[%clk 0:00:06]}  Ng3+ {[%clk 0:01:29]} 37. Kf2 {[%clk 0:00:06]}  b5 {[%clk 0:01:27]} 38. Nd2 {[%clk 0:00:06]}  bxa4 {[%clk 0:01:26]} 39. bxa4 {[%clk 0:00:07]}  Nc4 {[%clk 0:01:25]} 40. Nxc4 {[%clk 0:00:05]}  dxc4 {[%clk 0:01:26]} 41. Nc5 {[%clk 0:00:05]}  Rb2+ {[%clk 0:01:27]} 42. Kg1 {[%clk 0:00:06]}  Ne2+ {[%clk 0:01:27]} 43. Kf1 {[%clk 0:00:06]}  Nxc3 {[%clk 0:01:27]} 44. Re6 {[%clk 0:00:04]}  Nxa4 {[%clk 0:01:24]} 45. Rxc6 {[%clk 0:00:04]}  Nc3 {[%clk 0:01:04]} 46. Nd7 {[%clk 0:00:02]}  Nd5 {[%clk 0:01:02]} 47. Rc5 {[%clk 0:00:02]}  Ke6 {[%clk 0:01:00]} 48. Nf8+ {[%clk 0:00:02]}  Kd6 {[%clk 0:01:01]} 49. Nh7 {[%clk 0:00:00]}  a4 {[%clk 0:01:00]} 0-1


[Site "https://www.chess.com"]

[Event "Titled Tuesday Blitz August 22 Late 2023"]
[White "Cuenca Jimenez, Jose Fernando"]
[Black "Mindhunter08"]
[WhiteFideId "2255570"]
[WhiteElo "2687"]
[BlackElo "2469"]
[Result "1-0"]
[Round "3"]
[TimeControl "180+1"]
[Date "2023.08.22"]
[WhiteClock "0:00:18"]
[BlackClock "0:00:00"]
[Board "89"]

1. c4 {[%clk 0:03:00]}  c6 {[%clk 0:02:57]} 2. d4 {[%clk 0:03:00]}  d5 {[%clk 0:02:56]} 3. Nf3 {[%clk 0:03:00]}  Nf6 {[%clk 0:02:56]} 4. e3 {[%clk 0:03:00]}  e6 {[%clk 0:02:56]} 5. b3 {[%clk 0:02:56]}  Ne4 {[%clk 0:02:55]} 6. Bd3 {[%clk 0:02:53]}  Nd7 {[%clk 0:02:43]} 7. O-O {[%clk 0:02:52]}  Ndf6 {[%clk 0:02:43]} 8. Ne5 {[%clk 0:02:48]}  Be7 {[%clk 0:02:38]} 9. Bb2 {[%clk 0:02:46]}  O-O {[%clk 0:02:37]} 10. Qc2 {[%clk 0:02:44]}  h6 {[%clk 0:02:30]} 11. c5 {[%clk 0:02:36]}  Qc7 {[%clk 0:02:09]} 12. f3 {[%clk 0:02:21]}  Ng5 {[%clk 0:02:07]} 13. h4 {[%clk 0:02:20]}  Ngh7 {[%clk 0:02:04]} 14. g4 {[%clk 0:02:14]}  Bd7 {[%clk 0:01:33]} 15. Nd2 {[%clk 0:02:11]}  b6 {[%clk 0:01:33]} 16. b4 {[%clk 0:02:09]}  bxc5 {[%clk 0:01:31]} 17. bxc5 {[%clk 0:02:07]}  Rfb8 {[%clk 0:01:30]} 18. f4 {[%clk 0:02:06]}  Nf8 {[%clk 0:01:24]} 19. g5 {[%clk 0:02:06]}  hxg5 {[%clk 0:01:20]} 20. fxg5 {[%clk 0:02:02]}  Nh5 {[%clk 0:01:14]} 21. Rxf7 {[%clk 0:01:50]}  Be8 {[%clk 0:01:12]} 22. Rf2 {[%clk 0:01:38]}  Nd7 {[%clk 0:01:10]} 23. Ndf3 {[%clk 0:01:33]}  Ng3 {[%clk 0:00:56]} 24. Kg2 {[%clk 0:01:10]}  Nh5 {[%clk 0:00:43]} 25. Bh7+ {[%clk 0:01:08]}  Kh8 {[%clk 0:00:43]} 26. Bg6 {[%clk 0:01:06]}  Nf8 {[%clk 0:00:30]} 27. Bxe8 {[%clk 0:01:02]}  Rxe8 {[%clk 0:00:31]} 28. Rg1 {[%clk 0:00:55]}  Rab8 {[%clk 0:00:30]} 29. Bc3 {[%clk 0:00:35]}  Kg8 {[%clk 0:00:25]} 30. Kf1 {[%clk 0:00:32]}  Qb7 {[%clk 0:00:23]} 31. Kg2 {[%clk 0:00:30]}  Qa6 {[%clk 0:00:17]} 32. Kh3 {[%clk 0:00:26]}  Rec8 {[%clk 0:00:12]} 33. Kg4 {[%clk 0:00:25]}  g6 {[%clk 0:00:03]} 34. Nxg6 {[%clk 0:00:24]}  Nxg6 {[%clk 0:00:04]} 35. Qxg6+ {[%clk 0:00:23]}  Ng7 {[%clk 0:00:05]} 36. Ne5 {[%clk 0:00:22]}  Rf8 {[%clk 0:00:02]} 37. Rf7 {[%clk 0:00:20]}  Qe2+ {[%clk 0:00:01]} 38. Kh3 {[%clk 0:00:18]}  Qxe3+ {[%clk 0:00:00]} 39. Rg3 {[%clk 0:00:18]} 1-0


[Site "https://www.chess.com"]

[Event "Titled Tuesday Blitz August 22 Late 2023"]
[White "Hajiyev, Kanan"]
[Black "Alex_Sahakyan2006"]
[WhiteFideId "13404148"]
[WhiteElo "2462"]
[BlackElo "2677"]
[Result "0-1"]
[Round "3"]
[TimeControl "180+1"]
[Date "2023.08.22"]
[WhiteClock "0:00:00"]
[BlackClock "0:00:07"]
[Board "91"]

1. d4 {[%clk 0:03:00]}  Nf6 {[%clk 0:02:57]} 2. Nf3 {[%clk 0:03:01]}  g6 {[%clk 0:02:55]} 3. c4 {[%clk 0:03:01]}  Bg7 {[%clk 0:02:53]} 4. g3 {[%clk 0:03:02]}  O-O {[%clk 0:02:51]} 5. Bg2 {[%clk 0:03:02]}  d6 {[%clk 0:02:52]} 6. O-O {[%clk 0:03:02]}  Nc6 {[%clk 0:02:51]} 7. b3 {[%clk 0:03:03]}  e5 {[%clk 0:02:50]} 8. dxe5 {[%clk 0:03:04]}  Ng4 {[%clk 0:02:50]} 9. Bb2 {[%clk 0:03:03]}  Ngxe5 {[%clk 0:02:51]} 10. Nc3 {[%clk 0:03:04]}  Nxf3+ {[%clk 0:02:50]} 11. exf3 {[%clk 0:03:04]}  Be6 {[%clk 0:02:38]} 12. Qd2 {[%clk 0:03:03]}  Qd7 {[%clk 0:02:38]} 13. Rad1 {[%clk 0:03:03]}  Rae8 {[%clk 0:02:37]} 14. Rfe1 {[%clk 0:03:04]}  f5 {[%clk 0:02:27]} 15. c5 {[%clk 0:03:01]}  dxc5 {[%clk 0:02:19]} 16. Qxd7 {[%clk 0:02:43]}  Bxd7 {[%clk 0:02:20]} 17. Rxe8 {[%clk 0:02:41]}  Bxe8 {[%clk 0:02:19]} 18. f4 {[%clk 0:02:31]}  Bd4 {[%clk 0:01:55]} 19. Na4 {[%clk 0:02:26]}  Bxb2 {[%clk 0:01:40]} 20. Nxb2 {[%clk 0:02:27]}  b6 {[%clk 0:01:41]} 21. Bxc6 {[%clk 0:02:21]}  Bxc6 {[%clk 0:01:39]} 22. Nc4 {[%clk 0:02:22]}  Bf3 {[%clk 0:00:58]} 23. Rd7 {[%clk 0:02:21]}  Rc8 {[%clk 0:00:35]} 24. Ne5 {[%clk 0:02:21]}  Be4 {[%clk 0:00:33]} 25. f3 {[%clk 0:02:20]}  Bb1 {[%clk 0:00:32]} 26. a3 {[%clk 0:02:16]}  Ba2 {[%clk 0:00:30]} 27. b4 {[%clk 0:02:16]}  cxb4 {[%clk 0:00:28]} 28. axb4 {[%clk 0:02:17]}  Be6 {[%clk 0:00:19]} 29. Re7 {[%clk 0:02:17]}  Bd5 {[%clk 0:00:19]} 30. Nd7 {[%clk 0:02:07]}  Bf7 {[%clk 0:00:20]} 31. Ne5 {[%clk 0:02:05]}  Be8 {[%clk 0:00:20]} 32. h4 {[%clk 0:02:03]}  a5 {[%clk 0:00:20]} 33. bxa5 {[%clk 0:02:01]}  bxa5 {[%clk 0:00:21]} 34. Nc4 {[%clk 0:01:47]}  a4 {[%clk 0:00:21]} 35. Kf2 {[%clk 0:01:47]}  Bf7 {[%clk 0:00:15]} 36. Ne5 {[%clk 0:01:38]}  Bb3 {[%clk 0:00:09]} 37. Nd7 {[%clk 0:01:37]}  a3 {[%clk 0:00:10]} 38. Nf6+ {[%clk 0:01:36]}  Kf8 {[%clk 0:00:10]} 39. Rxh7 {[%clk 0:01:30]}  Be6 {[%clk 0:00:10]} 40. Nd7+ {[%clk 0:00:51]}  Bxd7 {[%clk 0:00:07]} 41. Rxd7 {[%clk 0:00:52]}  a2 {[%clk 0:00:07]} 42. Rd1 {[%clk 0:00:52]}  Ra8 {[%clk 0:00:08]} 43. Ra1 {[%clk 0:00:52]}  Ra3 {[%clk 0:00:09]} 44. Ke2 {[%clk 0:00:52]}  Ke7 {[%clk 0:00:08]} 45. g4 {[%clk 0:00:52]}  Kf6 {[%clk 0:00:07]} 46. Kd2 {[%clk 0:00:34]}  Rxf3 {[%clk 0:00:06]} 47. gxf5 {[%clk 0:00:30]}  Kxf5 {[%clk 0:00:06]} 48. Kc2 {[%clk 0:00:20]}  Ra3 {[%clk 0:00:04]} 49. Kb2 {[%clk 0:00:19]}  Ra8 {[%clk 0:00:05]} 50. Kc3 {[%clk 0:00:09]}  Kxf4 {[%clk 0:00:04]} 51. Rf1+ {[%clk 0:00:09]}  Kg4 {[%clk 0:00:05]} 52. Rg1+ {[%clk 0:00:10]}  Kxh4 {[%clk 0:00:05]} 53. Rh1+ {[%clk 0:00:11]}  Kg5 {[%clk 0:00:06]} 54. Rg1+ {[%clk 0:00:11]}  Kf6 {[%clk 0:00:06]} 55. Rf1+ {[%clk 0:00:12]}  Kg7 {[%clk 0:00:07]} 56. Ra1 {[%clk 0:00:13]}  g5 {[%clk 0:00:08]} 57. Kd4 {[%clk 0:00:12]}  Kg6 {[%clk 0:00:07]} 58. Ke4 {[%clk 0:00:12]}  Ra4+ {[%clk 0:00:08]} 59. Kf3 {[%clk 0:00:13]}  g4+ {[%clk 0:00:08]} 60. Kg3 {[%clk 0:00:13]}  Kg5 {[%clk 0:00:09]} 61. Kg2 {[%clk 0:00:13]}  Ra3 {[%clk 0:00:10]} 62. Kf2 {[%clk 0:00:13]}  g3+ {[%clk 0:00:09]} 63. Kg2 {[%clk 0:00:14]}  Kg4 {[%clk 0:00:08]} 64. Kg1 {[%clk 0:00:14]}  Kh3 {[%clk 0:00:07]} 65. Kh1 {[%clk 0:00:00]}  Rb3 {[%clk 0:00:07]} 0-1


[Site "https://www.chess.com"]